bitfinex/quotes_SOLUSD_20240626
["timestamp","ask_amount","ask_price","bid_price","bid_amount"]
[1719379873113,7.3173,136.67,136.64,0.34]
[1719379873521,7.3165,136.68,136.64,0.34]
[1719379874009,7.3159,136.69,136.64,7.6582]
[1719379874191,20.0,136.7,136.64,0.34]
[1719379874395,7.3165,136.68,136.64,0.34]
[1719379874591,20.0,136.7,136.63,21.7468]
[1719379874812,7.3175,136.66,136.63,15.4365]
[1719379874993,7.3174,136.66,136.63,15.4365]
[1719379875388,7.3169,136.67,136.63,15.4365]
[1719379875607,27.3175,136.66,136.63,15.4365]
[1719379875940,20.0,136.66,136.63,15.4365]
[1719379876103,20.0,136.66,136.64,0.34]
[1719379877603,27.3176,136.66,136.6,39.601]
[1719379878016,20.0,136.66,136.62,7.3194]
[1719379878818,20.0,136.66,136.63,0.17]
[1719379881717,7.3174,136.66,136.62,0.34]
[1719379881936,7.3169,136.67,136.63,7.319]
[1719379882219,27.3167,136.68,136.64,0.34]
[1719379882519,7.3169,136.67,136.64,0.34]
[1719379882914,27.3165,136.68,136.63,7.6588]
[1719379883293,7.317,136.67,136.63,7.6588]
[1719379883493,7.317,136.67,136.63,0.34]
[1719379884827,7.3164,136.68,136.63,0.34]
[1719379885006,7.63491585,136.7,136.64,18.2957]
[1719379885007,7.3158,136.69,136.64,18.2957]
[1719379885323,7.3158,136.69,136.65,0.34]
[1719379887227,7.3165,136.68,136.65,0.34]
[1719379888023,7.63491585,136.7,136.65,0.34]
[1719379888024,7.3159,136.69,136.65,0.34]
[1719379888228,14.95031585,136.7,136.65,7.6577]
[1719379888722,7.63491585,136.7,136.66,21.3189]
[1719379888903,258.6,136.73,136.66,21.3189]
[1719379888904,7.3148,136.71,136.67,0.34]
[1719379889505,7.3154,136.7,136.67,0.34]
[1719379889701,7.3142,136.72,136.67,0.34]
[1719379889905,7.3142,136.72,136.68,18.2902]
[1719379890127,7.3142,136.72,136.69,0.34]
[1719379890708,7.3147,136.71,136.69,0.34]
[1719379890908,7.3147,136.71,136.68,0.34]
[1719379891309,7.3147,136.71,136.69,0.17]
[1719379891514,7.3147,136.71,136.67,0.34]
[1719379892407,7.3147,136.71,136.67,7.6567]
[1719379892914,7.3147,136.71,136.67,0.34]
[1719379893113,7.3153,136.7,136.67,0.34]
[1719379893823,266.23491585,136.73,136.67,7.6568]
[1719379893824,7.3149,136.71,136.67,7.6568]
[1719379894234,7.3149,136.71,136.67,0.34]
[1719379894916,7.3149,136.71,136.67,2.00573334]
[1719379895401,7.3149,136.71,136.67,0.34]
[1719379896014,7.3162,136.69,136.66,21.3189]
[1719379896733,7.3162,136.69,136.66,22.20425715]
[1719379896919,7.3162,136.69,136.66,21.3189]
[1719379897305,7.3162,136.69,136.67,0.34]
[1719379897504,7.3152,136.7,136.67,0.34]
[1719379897710,7.3149,136.71,136.67,0.34]
[1719379898227,266.23491585,136.73,136.67,0.34]
[1719379898228,7.3153,136.7,136.67,0.34]
[1719379898931,7.3149,136.71,136.67,0.34]
[1719379900209,273.54871585,136.73,136.69,7.3156]
[1719379900539,273.54871585,136.73,136.7,0.34]
[1719379900923,266.23491585,136.73,136.7,0.34]
[1719379901247,265.914,136.73,136.7,0.34]
[1719379901412,265.914,136.73,136.69,0.34]
[1719379901735,7.3143,136.72,136.69,0.34]
[1719379901934,7.3143,136.72,136.7,0.17]
[1719379902121,7.3143,136.72,136.68,0.34]
[1719379902317,7.3143,136.72,136.68,7.6561]
[1719379902524,258.6,136.73,136.69,18.2891]
[1719379902718,265.9137,136.73,136.7,0.34]
[1719379903034,258.6,136.73,136.7,0.34]
[1719379903921,265.9137,136.73,136.7,0.34]
[1719379904816,258.6,136.73,136.7,0.34]
[1719379905022,7.3147,136.71,136.66,39.6115]
[1719379905231,7.3147,136.71,136.67,0.17]
[1719379905536,7.3149,136.71,136.67,0.17]
[1719379905724,7.3153,136.7,136.67,0.17]
[1719379905928,7.3148,136.71,136.67,0.17]
[1719379906415,7.3148,136.71,136.67,0.34]
[1719379906616,7.3142,136.72,136.67,7.6568]
[1719379908717,7.3138,136.73,136.67,18.6316]
[1719379908917,7.3138,136.73,136.68,7.3161]
[1719379909136,7.3143,136.72,136.69,0.34]
[1719379909524,7.3137,136.73,136.69,0.34]
[1719379910420,7.3142,136.72,136.69,0.34]
[1719379911833,7.3142,136.72,136.7,0.17]
[1719379912049,7.3142,136.72,136.68,0.34]
[1719379916550,7.3129,136.75,136.71,21.4865]
[1719379916735,7.3129,136.75,136.72,0.34]
[1719379917251,7.3131,136.74,136.72,0.34]
[1719379917446,7.31,136.8,136.75,7.3124]
[1719379917636,7.31,136.8,136.76,0.34]
[1719379917637,7.3101,136.8,136.76,0.34]
[1719379917844,258.6,136.84,136.76,7.652]
[1719379917845,7.3094,136.81,136.76,7.652]
[1719379918048,7.3094,136.81,136.77,4.33275236]
[1719379918234,7.3094,136.81,136.78,0.34]
[1719379919248,7.3098,136.81,136.78,0.34]
[1719379919455,7.31,136.8,136.78,0.34]
[1719379919633,7.31,136.8,136.78,0.17]
[1719379920335,33.4335,136.85,136.78,0.34]
[1719379920536,20.0,136.84,136.78,7.6508]
[1719379920735,7.3084,136.83,136.78,7.6508]
[1719379920956,7.3089,136.82,136.78,0.34]
[1719379921158,20.0,136.84,136.78,0.34]
[1719379921358,20.0,136.85,136.78,0.34]
[1719379921564,7.3078,136.84,136.78,18.6168]
[1719379921864,7.3074,136.85,136.8,7.3098]
[1719379922074,7.3074,136.85,136.81,0.34]
[1719379922237,6.87152696,136.87,136.81,7.6492]
[1719379922238,7.3068,136.86,136.81,7.6492]
[1719379922560,7.3068,136.86,136.81,10.17409087]
[1719379922761,7.3068,136.86,136.81,7.6492]
[1719379922930,7.3063,136.87,136.81,0.34]
[1719379923127,7.3058,136.88,136.83,7.3082]
[1719379923451,6.87152696,136.91,136.84,0.34]
[1719379923956,6.87152696,136.91,136.84,0.17]
[1719379924151,6.87152696,136.91,136.83,0.34]
[1719379924353,7.3068,136.86,136.83,0.34]
[1719379924741,7.3074,136.85,136.83,0.34]
[1719379925153,7.3074,136.85,136.83,0.17]
[1719379925336,38.2618,136.9,136.78,7.3109]
[1719379925337,18.265,136.88,136.78,7.3109]
[1719379925537,20.0,136.87,136.79,7.4804]
[1719379925756,7.3078,136.84,136.79,7.4804]
[1719379926142,20.0,136.87,136.79,0.17]
[1719379926352,20.0,136.87,136.8,18.2741]
[1719379926548,7.307,136.86,136.81,7.4791]
[1719379926747,20.0,136.85,136.82,0.17]
[1719379926941,7.307,136.86,136.82,0.17]
[1719379927965,18.265,136.88,136.82,0.17]
[1719379928160,7.3073,136.85,136.81,0.34]
[1719379929245,7.3073,136.85,136.81,7.6493]
[1719379929757,7.3069,136.86,136.82,4.48120315]
[1719379930058,7.3063,136.87,136.83,0.34]
[1719379930260,7.3067,136.86,136.83,23.4975]
[1719379930472,7.3064,136.87,136.83,23.4975]
[1719379930841,20.0,136.86,136.74,6.4928]
[1719379931151,7.3119,136.77,136.74,6.4928]
[1719379931553,7.3121,136.76,136.74,6.4928]
[1719379931777,18.278,136.78,136.71,6.4928]
[1719379931938,20.0,136.77,136.67,23.1575]
[1719379932261,20.0,136.79,136.67,23.1575]
[1719379932462,18.2807,136.76,136.67,23.1575]
[1719379932658,20.0,136.75,136.67,23.1575]
[1719379932863,7.3128,136.75,136.7,7.3151]
[1719379933186,20.0,136.74,136.71,0.17]
[1719379933357,20.0,136.74,136.71,0.34]
[1719379933970,20.0,136.74,136.71,7.6547]
[1719379934144,20.0,136.75,136.71,7.6547]
[1719379934345,27.3126,136.75,136.71,0.34]
[1719379934545,27.3126,136.75,136.71,1.80018541]
[1719379935049,27.3126,136.75,136.71,0.34]
[1719379935942,20.0,136.75,136.71,7.6545]
[1719379938165,20.0,136.75,136.72,0.36652697]
[1719379938349,20.0,136.75,136.73,0.34]
[1719379938758,7.62624918,136.81,136.74,6.2749]
[1719379938944,18.2729,136.82,136.75,0.34]
[1719379938945,7.3111,136.78,136.75,0.34]
[1719379940853,7.3106,136.79,136.75,0.34]
[1719379941071,20.0,136.78,136.75,0.34]
[1719379941858,20.0,136.78,136.75,7.6525]
[1719379942978,20.0,136.78,136.74,6.2749]
[1719379943181,18.2755,136.8,136.73,0.17]
[1719379943358,20.0,136.79,136.72,0.34]
[1719379943562,7.3121,136.76,136.71,7.3146]
[1719379943869,27.3106,136.79,136.74,7.3129]
[1719379944277,20.0,136.79,136.75,7.3125]
[1719379944683,27.3105,136.79,136.75,7.3125]
[1719379944967,27.3105,136.79,136.76,0.34]
[1719379945175,27.3105,136.79,136.77,0.17]
[1719379945361,27.3105,136.79,136.75,7.6525]
[1719379945362,26.3105,136.79,136.75,7.6525]
[1719379945779,26.3105,136.79,136.75,1.68351526]
[1719379945980,26.3105,136.79,136.75,0.34]
[1719379946176,7.311,136.78,136.75,0.34]
[1719379947483,20.0,136.77,136.75,0.34]
[1719379947863,58.38783723,136.84,136.76,18.2796]
[1719379947864,7.3095,136.81,136.76,18.2796]
[1719379948174,7.309,136.82,136.77,7.6515]
[1719379948379,20.0,136.81,136.77,7.6515]
[1719379948958,20.0,136.81,136.77,14.2312]
[1719379949982,20.0,136.81,136.78,7.3109]
[1719379950283,20.0,136.81,136.79,0.34]
[1719379950463,20.0,136.82,136.79,0.34]
[1719379951075,20.0,136.82,136.79,7.6504]
[1719379951467,7.3073,136.85,136.8,7.3098]
[1719379951669,20.0,136.84,136.81,0.34]
[1719379953073,27.3078,136.84,136.81,0.34]
[1719379953462,20.0,136.84,136.81,7.6494]
[1719379956776,27.3072,136.85,136.82,0.34]
[1719379957485,14.93224918,136.88,136.83,7.3079]
[1719379957668,14.93224918,136.88,136.84,0.34]
[1719379957669,20.0,136.87,136.84,0.34]
[1719379958888,20.0,136.87,136.84,7.6477]
[1719379959076,27.3057,136.88,136.84,0.34]
[1719379960993,27.3057,136.88,136.84,7.6477]
[1719379961668,20.0,136.88,136.85,7.3067]
[1719379961868,20.0,136.91,136.86,1.563755]
[1719379962073,20.0,136.91,136.86,0.34]
[1719379962283,7.305,136.9,136.86,0.34]
[1719379962486,20.0,136.89,136.86,0.34]
[1719379962893,27.3052,136.89,136.86,0.34]
[1719379964090,20.0,136.89,136.86,0.34]
[1719379964296,7.3036,136.92,136.86,35.2354]
[1719379964490,7.3036,136.92,136.87,7.3057]
[1719379964692,7.3036,136.92,136.88,0.34]
[1719379964886,7.3031,136.93,136.88,7.6455]
[1719379965085,7.3038,136.92,136.88,0.34]
[1719379965788,7.3041,136.91,136.88,0.34]
[1719379966086,7.3041,136.91,136.86,42.2019]
[1719379966087,27.3041,136.91,136.87,0.34]
[1719379966291,20.0,136.91,136.87,7.6461]
[1719379966786,8.47526818,136.96,136.88,24.7297]
[1719379966994,27.3023,136.95,136.9,7.3041]
[1719379967176,27.3023,136.95,136.91,0.34]
[1719379969891,27.3023,136.95,136.91,7.644]
[1719379970192,20.0,136.95,136.91,7.644]
[1719379970987,20.0,136.95,136.92,8.04767479]
[1719379971190,0.849019,136.96,136.93,0.34]
[1719379971393,20.849019,136.96,136.93,0.34]
[1719379972975,28.150419,136.96,136.93,0.34]
[1719379974169,28.150419,136.96,136.94,0.17]
[1719379974376,28.150419,136.96,136.92,0.34]
[1719379975376,28.150419,136.96,136.92,7.6434]
[1719379975998,28.150419,136.96,136.92,0.34]
[1719379976901,28.150419,136.96,136.92,7.6434]
[1719379977289,20.849019,136.96,136.92,7.6434]
[1719379977599,28.150519,136.96,136.92,7.6434]
[1719379977789,28.150519,136.96,136.92,0.34]
[1719379980279,20.849019,136.96,136.92,7.6434]
[1719379981202,28.150719,136.96,136.92,0.34]
[1719379981408,28.150719,136.96,136.88,6.4658]
[1719379981409,20.849019,136.96,136.88,6.4658]
[1719379981897,7.302,136.95,136.9,7.3042]
[1719379982086,20.0,136.94,136.9,7.3042]
[1719379982485,27.3024,136.94,136.9,7.3042]
[1719379982898,20.0,136.94,136.9,7.3042]
[1719379983286,27.3025,136.94,136.91,0.17]
[1719379983677,27.3025,136.94,136.91,0.34]
[1719379983896,20.0,136.94,136.89,18.2618]
[1719379984094,7.3032,136.93,136.89,18.2618]
[1719379984295,20.0,136.92,136.89,18.2618]
[1719379984802,20.0,136.92,136.88,6.4658]
[1719379984989,18.2556,136.95,136.86,42.2013]
[1719379985194,20.0,136.94,136.86,42.2013]
[1719379985499,7.3046,136.9,136.86,34.8948]
[1719379986010,20.0,136.89,136.82,16.5525]
[1719379986215,27.62624918,136.94,136.82,16.5525]
[1719379986504,7.3079,136.84,136.8,6.2684]
[1719379987289,18.2659,136.87,136.8,13.5781]
[1719379987290,7.3074,136.85,136.8,13.5781]
[1719379988021,7.3088,136.83,136.78,7.3109]
[1719379988392,20.0,136.82,136.79,7.3104]
[1719379988910,20.0,136.83,136.79,7.3104]
[1719379989121,20.0,136.83,136.76,24.3493]
[1719379989287,18.269,136.85,136.76,24.3493]
[1719379989487,7.309,136.82,136.77,7.311]
[1719379989686,20.0,136.81,136.78,18.2768]
[1719379990113,20.0,136.81,136.79,7.3104]
[1719379990308,20.0,136.83,136.8,0.17]
[1719379990489,20.0,136.83,136.8,0.34]
[1719379991105,20.0,136.83,136.81,7.3093]
[1719379991296,20.0,136.84,136.81,7.3093]
[1719379992202,20.0,136.84,136.82,0.34]
[1719379992392,20.0,136.85,136.82,0.34]
[1719379992599,20.0,136.87,136.82,0.34]
[1719379995125,27.62624918,136.87,136.77,20.0]
[1719379995409,7.62624918,136.86,136.78,0.34]
[1719379995614,20.0,136.85,136.79,0.17]
[1719379995794,20.0,136.85,136.77,0.34]
[1719379999915,20.0,136.85,136.77,1.8003243]
[1719380000305,20.0,136.85,136.78,16.69383261]
[1719380000620,20.0,136.85,136.79,0.34]
[1719380000816,20.0,136.89,136.79,0.34]
[1719380001019,27.62624918,136.89,136.79,0.34]
[1719380005524,27.62624918,136.89,136.8,6.1076]
[1719380005726,27.62624918,136.89,136.81,0.34]
[1719380006630,27.62624918,136.89,136.82,15.3385]
[1719380006813,27.62624918,136.89,136.83,0.34]
[1719380007015,27.62624918,136.89,136.83,1.18085066]
[1719380007208,27.62624918,136.89,136.83,2.37321815]
[1719380007819,20.0,136.89,136.84,6.532]
[1719380008015,27.62624918,136.93,136.85,0.34]
[1719380008414,27.62624918,136.93,136.86,15.7516]
[1719380008614,27.62624918,136.93,136.87,0.34]
[1719380010334,20.0,136.93,136.87,0.34]
[1719380010506,20.0,136.95,136.88,6.532]
[1719380010712,20.0,136.95,136.89,0.34]
[1719380011325,20.0,136.95,136.89,2.95452654]
[1719380015435,20.0,136.95,136.89,0.34]
[1719380017826,20.0,136.95,136.9,15.4866]
[1719380018161,0.849019,136.96,136.91,0.34]
[1719380018335,0.849019,136.96,136.91,1.71971986]
[1719380018660,0.849019,136.96,136.91,0.34]
[1719380025246,0.849019,136.96,136.9,15.4866]
[1719380028365,0.849019,136.96,136.91,0.17]
[1719380028548,0.849019,136.96,136.91,0.34]
[1719380033251,0.849019,136.96,136.91,2.03173843]
[1719380034074,0.849019,136.96,136.91,0.34]
[1719380035269,0.849019,136.96,136.94,7.3022]
[1719380035454,0.849019,136.96,136.95,0.17]
[1719380035643,0.849019,136.96,136.95,0.34]
[1719380036553,0.849019,136.96,136.93,25.5597]
[1719380036554,0.849019,136.96,136.94,0.34]
[1719380037074,0.849019,136.96,136.94,7.6423]
[1719380041379,0.849019,136.96,136.95,7.3019]
[1719380041676,0.849019,136.96,136.95,7.6419]
[1719380044294,0.849019,136.96,136.95,12.50668418]
[1719380044585,0.849019,136.96,136.95,27.57108418]
[1719380045359,0.849019,136.96,136.95,22.7063]
[1719380046781,0.849019,136.96,136.95,24.39361497]
[1719380046987,0.849019,136.96,136.95,22.7063]
[1719380048090,0.849019,136.96,136.95,15.4044]
[1719380049354,0.849019,136.96,136.95,22.7063]
[1719380054273,0.849019,136.96,136.95,27.7769552]
[1719380054679,0.849019,136.96,136.95,31.40133815]
[1719380055569,0.849019,136.96,136.95,22.7063]
[1719380058492,0.849019,136.96,136.94,7.3023]
[1719380058996,0.849019,136.96,136.95,7.3019]
[1719380059699,0.849019,136.96,136.95,7.4719]
[1719380059905,0.849019,136.96,136.95,7.6419]
[1719380064394,0.849019,136.96,136.95,0.34]
[1719380064591,0.849019,136.96,136.95,0.17]
[1719380064791,0.849019,136.96,136.95,7.4719]
[1719380065897,0.849019,136.96,136.95,7.6419]
[1719380072309,0.849019,136.96,136.95,0.34]
[1719380072489,0.849019,136.96,136.95,7.6419]
[1719380076810,0.849019,136.96,136.93,23.50772464]
[1719380076992,0.849019,136.96,136.93,18.2568]
[1719380077514,0.849019,136.96,136.93,25.5594]
[1719380077810,0.849019,136.96,136.93,32.30677857]
[1719380078215,0.849019,136.96,136.94,0.34]
[1719380079014,0.849019,136.96,136.94,7.6424]
[1719380079605,0.849019,136.96,136.94,0.34]
[1719380080016,0.849019,136.96,136.93,0.34]
[1719380080221,0.849019,136.96,136.93,0.17]
[1719380080412,0.849019,136.96,136.93,7.473]
[1719380081617,0.849019,136.96,136.94,0.17]
[1719380081815,0.849019,136.96,136.89,18.2619]
[1719380082017,0.849019,136.96,136.92,7.3033]
[1719380082915,0.849019,136.96,136.91,18.2595]
[1719380082916,0.849019,136.96,136.93,7.3029]
[1719380083115,0.849019,136.96,136.94,0.17]
[1719380083519,0.849019,136.96,136.94,0.34]
[1719380083814,0.849019,136.96,136.94,0.17]
[1719380084120,0.849019,136.96,136.93,0.17]
[1719380084319,0.849019,136.96,136.92,0.34]
[1719380084525,20.849019,136.96,136.92,0.34]
[1719380084695,0.849019,136.96,136.92,0.34]
[1719380084900,0.849019,136.96,136.92,7.6433]
[1719380086708,0.849019,136.96,136.93,18.2565]
[1719380086909,0.849019,136.96,136.95,7.3019]
[1719380087106,0.849019,136.96,136.95,0.34]
[1719380087720,0.849019,136.96,136.95,0.17]
[1719380088016,0.849019,136.96,136.94,0.17]
[1719380088319,0.849019,136.96,136.94,0.34]
[1719380089020,0.849019,136.96,136.94,0.17]
[1719380089234,0.849019,136.96,136.92,7.3033]
[1719380090011,0.849019,136.96,136.93,7.3029]
[1719380090215,0.849019,136.96,136.94,7.3022]
[1719380090405,0.849019,136.96,136.95,0.34]
[1719380092104,0.849019,136.96,136.95,0.17]
[1719380092516,0.849019,136.96,136.92,18.2585]
[1719380092713,0.849019,136.96,136.93,0.34]
[1719380093525,0.849019,136.96,136.93,0.17]
[1719380093829,20.849019,136.96,136.93,0.17]
[1719380094618,20.849019,136.96,136.92,7.6434]
[1719380094803,20.0,136.95,136.92,7.6434]
[1719380095008,0.849019,136.96,136.92,7.6434]
[1719380098026,0.849019,136.96,136.93,18.2569]
[1719380098231,0.849019,136.96,136.94,0.34]
[1719380098815,0.849019,136.96,136.94,7.6422]
[1719380099509,0.849019,136.96,136.94,0.34]
[1719380103915,0.849019,136.96,136.92,7.3033]
[1719380103916,0.849019,136.96,136.95,0.17]
[1719380104231,0.849019,136.96,136.93,0.34]
[1719380104414,0.849019,136.96,136.88,15.7618]
[1719380104820,7.3024,136.94,136.88,23.0672]
[1719380105227,7.3021,136.95,136.89,7.305]
[1719380105533,0.849019,136.96,136.87,18.2644]
[1719380105717,7.3033,136.93,136.87,25.5702]
[1719380105912,20.0,136.92,136.84,18.2693]
[1719380106114,7.305,136.9,136.84,25.577]
[1719380106324,27.3052,136.89,136.84,18.2693]
[1719380106524,27.3052,136.89,136.83,7.335]
[1719380106724,7.3056,136.88,136.83,7.335]
[1719380106927,20.0,136.87,136.82,7.335]
[1719380107242,20.0,136.87,136.82,14.6438]
[1719380107722,20.0,136.88,136.82,14.6437]
[1719380108747,20.0,136.88,136.83,0.34]
[1719380108944,7.62624918,136.92,136.87,7.3061]
[1719380109150,20.0,136.91,136.88,0.34]
[1719380109322,20.0,136.92,136.88,0.34]
[1719380110732,20.0,136.92,136.89,0.17]
[1719380110936,27.3036,136.92,136.87,0.34]
[1719380111139,27.3036,136.92,136.87,0.17]
[1719380112330,0.849019,136.96,136.91,7.3036]
[1719380112535,0.849019,136.96,136.92,0.34]
[1719380112734,28.150619,136.96,136.92,0.34]
[1719380113126,8.150619,136.96,136.92,0.34]
[1719380113529,0.849019,136.96,136.91,7.6439]
[1719380114346,20.849019,136.96,136.91,7.6439]
[1719380118245,28.150619,136.96,136.91,0.34]
[1719380118443,28.150619,136.96,136.92,0.17]
[1719380118650,28.150619,136.96,136.9,7.6444]
[1719380119358,20.849019,136.96,136.91,7.304]
[1719380119547,20.849019,136.96,136.92,0.34]
[1719380120130,20.849019,136.96,136.92,7.6435]
[1719380120331,20.0,136.95,136.92,7.6435]
[1719380120552,0.849019,136.96,136.92,7.6435]
[1719380121052,0.849019,136.96,136.93,0.34]
[1719380122250,0.849019,136.96,136.95,7.3019]
[1719380122457,0.849019,136.96,136.94,7.3023]
[1719380122643,6.5534,136.95,136.83,30.0003561]
[1719380122848,20.0,136.94,136.83,7.6277561]
[1719380123155,15.7743,136.89,136.83,7.3079]
[1719380123337,20.0,136.88,136.83,7.3079]
[1719380123539,20.0,136.88,136.82,25.5799]
[1719380123749,27.3059,136.88,136.82,18.2712]
[1719380123937,27.3059,136.88,136.71,254.58]
[1719380123938,7.3062,136.87,136.81,7.335]
[1719380124139,20.0,136.86,136.81,25.6077]
[1719380124346,20.0,136.86,136.83,7.3079]
[1719380124648,20.0,136.86,136.81,25.6077]
[1719380124851,20.0,136.86,136.81,32.9169]
[1719380125238,20.0,136.86,136.82,7.3087]
[1719380126356,20.0,136.86,136.83,0.34]
[1719380126953,20.0,136.86,136.81,32.917]
[1719380127138,20.0,136.86,136.82,7.3086]
[1719380127860,30.0,136.85,136.82,7.3086]
[1719380128236,30.0,136.85,136.83,0.34]
[1719380129557,30.0,136.85,136.81,18.2727]
[1719380129859,30.0,136.85,136.82,0.17]
[1719380130046,30.0,136.85,136.82,0.34]
[1719380132660,30.0,136.85,136.82,7.6488]
[1719380134455,30.0,136.85,136.82,0.34]
[1719380135363,20.0,136.84,136.78,18.2769]
[1719380135541,30.0,136.83,136.79,7.4799]
[1719380135740,30.0,136.83,136.8,0.17]
[1719380137283,30.0,136.83,136.79,7.6501]
[1719380139343,30.0,136.83,136.8,18.2744]
[1719380139548,30.0,136.83,136.81,7.6489]
[1719380139868,35.5288,136.82,136.77,7.63794001]
[1719380140043,35.5288,136.82,136.75,7.335]
[1719380140044,30.0,136.81,136.75,7.335]
[1719380140241,20.0,136.8,136.75,7.335]
[1719380140470,20.0,136.8,136.75,14.6472]
[1719380141050,20.0,136.8,136.76,7.3118]
[1719380141366,20.0,136.8,136.77,0.34]
[1719380141543,20.0,136.8,136.75,14.6474]
[1719380142356,27.3099,136.8,136.75,7.335]
[1719380143054,30.0,136.79,136.75,14.6476]
[1719380143663,30.0,136.79,136.76,0.17]
[1719380144775,30.0,136.79,136.76,0.34]
[1719380146252,30.0,136.79,136.78,7.311]
[1719380146569,15.8338,136.85,136.78,7.651]
[1719380146769,27.3078,136.84,136.79,0.34]
[1719380148272,20.0,136.84,136.8,7.3098]
[1719380148778,20.0,136.84,136.79,7.6502]
[1719380149269,20.0,136.84,136.8,7.3097]
[1719380149450,20.0,136.84,136.81,0.34]
[1719380149650,20.0,136.84,136.79,7.6503]
[1719380150373,20.0,136.84,136.8,7.3098]
[1719380150570,20.0,136.84,136.81,0.34]
[1719380152475,34.1443,136.9,136.81,0.34]
[1719380152671,15.8654,136.9,136.81,8.35892724]
[1719380152859,20.0,136.89,136.84,7.3073]
[1719380153059,20.0,136.89,136.85,7.647]
[1719380153255,20.0,136.89,136.85,0.34]
[1719380153455,20.0,136.89,136.86,18.2664]
[1719380153662,20.0,136.91,136.87,0.34]
[1719380153881,15.3257,136.95,136.9,7.3044]
[1719380154085,15.3257,136.95,136.91,7.6436]
[1719380154298,0.849019,136.96,136.92,7.3032]
[1719380154466,0.849019,136.96,136.93,0.17]
[1719380154791,0.849019,136.96,136.92,7.4731]
[1719380154971,0.849019,136.96,136.93,0.17]
[1719380156796,0.849019,136.96,136.92,0.17]
[1719380156971,0.849019,136.96,136.91,0.17]
[1719380157488,7.3023,136.95,136.91,0.17]
[1719380157658,20.0,136.94,136.9,0.34]
[1719380158058,20.0,136.94,136.89,0.34]
[1719380158286,7.302,136.95,136.89,7.645]
[1719380158494,20.0,136.94,136.89,7.645]
[1719380159159,20.0,136.94,136.9,7.3044]
[1719380159369,20.0,136.95,136.91,0.34]
[1719380160087,20.0,136.95,136.9,0.34]
[1719380160672,20.0,136.95,136.9,7.6444]
[1719380162464,20.0,136.95,136.89,18.2624]
[1719380162665,0.849019,136.96,136.88,0.17]
[1719380162866,0.849019,136.96,136.87,0.34]
[1719380163382,0.849019,136.96,136.88,18.2638]
[1719380163383,7.3019,136.95,136.88,18.2638]
[1719380163587,20.0,136.94,136.89,0.34]
[1719380163765,20.0,136.94,136.89,7.6447]
[1719380164178,20.0,136.94,136.89,0.34]
[1719380164389,27.3026,136.94,136.89,0.34]
[1719380164693,27.3026,136.94,136.89,0.17]
[1719380164871,27.3026,136.94,136.88,25.5692]
[1719380165070,20.0,136.94,136.85,24.799]